Cogmind - Beta 13 @@@ ROGUE MODE // 2024.03.12 @ 07:34:39 Player: Grim Result: Destroyed by G-34 Mercenary with Small Laser Performance ------------- Evolutions (1) 500 Regions Visited (2) 400 Robots Destroyed (22) 110 Value Destroyed (471) 471 Prototype IDs (0) 0 Alien Tech Used (0) 0 Bonus (0) 0 TOTAL SCORE: 1481 Bonus ------- None Cogmind --------- Core Integrity 0/400 Matter 174/300 Energy 100/100 System Corruption 0% Temperature Cool (6) Movement Core (350) Ox6 Location -9/Materials Parts ------- > --- POWER (1) -------- (None) > --- PROPULSION (2) --- (None) > --- UTILITY (3) ------ Large Storage Unit > --- WEAPON (3) ------- (None) > --- INVENTORY (15) --- Huge Storage Unit Medium Matter Pod (100) Peak State ------------ > --- POWER ------------ Light Ion Engine > --- PROPULSION ------- Light Treads Light Treads > --- UTILITY ---------- Large Storage Unit Improved Terrain Scanner Seismic Detector > --- WEAPON ----------- Light Assault Rifle Light Assault Rifle Mining Laser > --- INVENTORY -------- Ion Engine Heat Sink Medium Matter Pod Medium Laser Particle Gun Beam Cannon [Rating: 11] Favorites ----------- Power Light Ion Engine Engine Light Ion Engine Propulsion Light Treads Treads Light Treads Utility Improved Terrain Scanner Device Improved Terrain Scanner Storage Small Storage Unit Weapon Light Assault Rifle Energy Gun Particle Gun Energy Cannon Beam Cannon Ballistic Gun Light Assault Rifle Launcher Grenade Launcher Special Weapon Mining Laser Build | -11 -10 -9 ------- Run | Yrd Mat Mat Slots Evolved 2 | . . 2 Power . | . . . Propulsion . | . . . Utility 1 | . . 1 Weapon 1 | . . 1 Parts Attached 20 | 7 2 11 Power 2 | 1 . 1 Engine 2 | 1 . 1 Core . | . . . Reactor . | . . . Propulsion 2 | 2 . . Treads 2 | 2 . . Leg . | . . . Wheel . | . . . Hover . | . . . Flight . | . . . Utility 6 | 2 2 2 Device 3 | 1 . 2 Storage 3 | 1 2 . Processor . | . . . Hackware . | . . . Protection . | . . . Artifact . | . . . Weapon 10 | 2 . 8 Energy Gun 2 | . . 2 Energy Cannon 1 | . . 1 Ballistic Gun 3 | 2 . 1 Ballistic Cannon . | . . . Launcher 3 | . . 3 Special Weapon 1 | . . 1 Impact Weapon . | . . . Slashing Weapon . | . . . Piercing Weapon . | . . . Special Melee Weapon . | . . . Unidentified Prototypes . | . . . Parts Lost 16 | . . 16 Power 2 | . . 2 Propulsion 2 | . . 2 Utility 3 | . . 3 Weapon 9 | . . 9 Highest Loss Streak 16 | . . 16 To Critical Strikes 1 | . . 1 Average Slot Usage (%) 95 | . 100 84 Engine 12 | . 14 9 Treads 24 | . 28 15 Device 15 | . 14 19 Storage 13 | . 14 11 Energy Gun 1 | . . 4 Ballistic Gun 24 | . 28 14 Special Weapon 1 | . . 6 Naked Turns . | . . . Heaviest Build 29 | 11 26 29 Greatest Support 40 | 40 40 40 Greatest Overweight (x) 9 | . . 9 Average Overweight (x) . | . . . Largest Inventory Capacity 15 | 8 15 15 Average Capacity 10 | 7 10 15 Most Carried 10 | 5 10 7 Average Carried 4 | . 6 4 Final Capacity 15 | 8 15 15 Final Carried 8 | 2 8 2 Class Distribution -------------------- 90% | Mutant 9% | Skirmisher Dominant Class ---------------- Mutant | -10/Materials Skirmisher | -9/Materials Resources | -11 -10 -9 ----------- Run | Yrd Mat Mat Matter Collected 457 | 429 28 . Remotely . | . . . Salvage Created 673 | 229 134 310 Parts 40 | 15 6 19 Haulers Intercepted . | . . . Recyclers Shooed . | . . . Parts Field Recycled . | . . . Retrieved Matter . | . . . Parts Self-Destructed . | . . . Prevented . | . . . Kills | -11 -10 -9 ------- Run | Yrd Mat Mat Combat Hostiles Destroyed 10 | . 3 7 Guns 6 | . 3 3 AOE 4 | . . 4 Classes Destroyed 9 | 3 1 5 Worker 3 | 2 . 1 Builder 1 | . . 1 Tunneler 4 | 4 . . Recycler 2 | 1 . 1 Mechanic 1 | . . 1 Watcher 1 | . . 1 Swarmer 1 | . . 1 Grunt 7 | . 3 4 Sentry 2 | . . 2 Best Kill Streak 8 | 3 2 8 Combat Bots Only 3 | . 2 3 Max Kills in Single Turn 3 | 1 1 3 Gunslinging . | . . . Exploded 2 | . . 2 Melee . | . . . Uniques/NPCs Destroyed . | . . . Combat | -11 -10 -9 -------- Run | Yrd Mat Mat Hostile Shots Fired 167 | . 17 150 Missed 34 | . 4 30 Damage Taken 1611 | . 171 1440 Core 430 | . 27 403 Absorbed by Shields . | . . . Core Remaining (%) 94 | 100 89 . Volleys Fired 69 | 30 15 24 Largest 3 | 2 2 3 Hottest 145 | 40 40 145 Shots Fired 140 | 60 30 50 Gun 129 | 60 30 39 Cannon 5 | . . 5 Launcher 5 | . . 5 Special 1 | . . 1 Kinetic 114 | 60 30 24 Thermal 21 | . . 21 Explosive 5 | . . 5 Electromagnetic . | . . . Robot Hit Streak 11 | 7 11 9 Robot Miss Streak 4 | 4 3 4 Penetration Max . | . . . Secondary Targets 1 | . 1 . Max Gunslinging Chain 1 | . 1 . Shots Hit Robots 89 | 36 22 31 Core Hits 49 | 14 9 26 Critical Kills . | . . . Critical Parts Destroyed . | . . . Critical Strikes 2 | . . 2 Burn 2 | . . 2 Melee Attacks . | . . . Impact . | . . . Slashing . | . . . Piercing . | . . . Sneak Attacks . | . . . Combat Hostiles . | . . . Follow-up Attacks . | . . . Damage Inflicted 1325 | 288 172 865 Guns 732 | 288 172 272 Cannons 70 | . . 70 Explosions 499 | . . 499 Melee . | . . . Ramming . | . . . Kinetic 577 | 288 172 117 Thermal 249 | . . 249 Explosive 499 | . . 499 Electromagnetic . | . . . Impact . | . . . Slashing . | . . . Piercing . | . . . Highest Corruption . | . . . Average Corruption . | . . . Corruption Purged . | . . . Corruption Blocked . | . . . Overload Shots . | . . . Overflow Damage 3 | . . 3 Projectiles . | . . . Explosions 3 | . . 3 Melee . | . . . Knockbacks . | . . . Impact . | . . . Kinetic . | . . . Secondary . | . . . Self-Inflicted Damage 29 | . . 29 Shots 1 | . . 1 Rammed . | . . . Targets Rammed . | . . . Kicked . | . . . Crushed . | . . . Highest Temperature 407 | . 24 407 Average Temperature 170 | . 9 209 Received Heat Transfer 615 | . 96 519 Effects 3 | . . 3 Shutdowns 1 | . . 1 Damage (minor) 2 | . . 2 Siege Activations . | . . . Robots Corrupted . | . . . Combat Hostiles . | . . . Parts Fried . | . . . Impact Corruptions . | . . . Robots Melted . | . . . Combat Hostiles . | . . . Parts Melted 3 | . . 3 Heat Transferred 753 | . . 753 Parts Sabotaged . | . . . Parts Stolen . | . . . Parts Stripped . | . . . Power Chain Reactions . | . . . Alert | -11 -10 -9 ------- Run | Yrd Mat Mat Peak Influence 112 | 35 112 94 Initial 22 | . 22 . Average 44 | 16 67 29 Maximum Alert Level . | . . . Low Security (%) 100 | 100 100 100 Level 1 . | . . . Level 2 . | . . . Level 3 . | . . . Level 4 . | . . . Level 5 . | . . . High Security . | . . . Max Security . | . . . Squads Dispatched 1 | . . 1 Investigation . | . . . Extermination . | . . . Reinforcement 1 | . . 1 Assault . | . . . Garrison . | . . . Intercept . | . . . Searches Triggered . | . . . Construction Impeded . | . . . Haulers Reinforced . | . . . Active Scanning Responses . | . . . Cargo Convoy Interrupts . | . . . Stealth | -11 -10 -9 --------- Run | Yrd Mat Mat Distress Signals 2 | . . 2 Communications Jammed . | . . . Distress Signals . | . . . Times Spotted 18 | . 4 14 Peak Tracking Total 8 | . 2 8 Tactical Retreats . | . . . Traps | -11 -10 -9 ------- Run | Yrd Mat Mat Traps Triggered . | . . . Indirectly . | . . . Trap Hack Attempts . | . . . Triggered . | . . . Disarmed . | . . . Reprogrammed . | . . . Reused . | . . . Traps Extracted . | . . . Installed . | . . . Triggered . | . . . Machines | -11 -10 -9 ---------- Run | Yrd Mat Mat Machines Disabled 3 | . . 3 Max in Single Turn 2 | . . 2 Machines Repaired . | . . . Machines Dismantled . | . . . Machines Sabotaged . | . . . Overloaded Fab Kills . | . . . Hacking | -11 -10 -9 --------- Run | Yrd Mat Mat Machines Accessed 3 | . 3 . Terminals 3 | . 3 . Fabricators . | . . . Repair Stations . | . . . Recycling Units . | . . . Scanalyzers . | . . . Garrison Access . | . . . Total Hacks 5 | . 5 . Successful 3 | . 3 . Failed 2 | . 2 . Catastrophic . | . . . Database Lockouts . | . . . Manual . | . . . Terminals 5 | . 5 . Fabricators . | . . . Repair Stations . | . . . Recycling Units . | . . . Scanalyzers . | . . . Garrison Access . | . . . Terminal Hacks 3 | . 3 . Emergency Access Points 1 | . 1 . Alert Level 1 | . 1 . Zone Layout 1 | . 1 . Fabricator Hacks . | . . . Repair Station Hacks . | . . . Recycling Unit Hacks . | . . . Scanalyzer . | . . . Garrison Access Hacks . | . . . Unauthorized Hacks . | . . . Terminals . | . . . Fabricators . | . . . Repair Stations . | . . . Recycling Units . | . . . Scanalyzers . | . . . Garrison Access . | . . . Data Cores Recovered . | . . . Used . | . . . Hacking Detections 2 | . 2 . Full Trace Events . | . . . Feedback Events . | . . . Feedback Blocked . | . . . Robot Schematics Acquired . | . . . Robots Built . | . . . Authchips . | . . . Time . | . . . Total Robot Build Rating . | . . . Part Schematics Acquired . | . . . Parts Built . | . . . Authchips . | . . . Time . | . . . Total Part Build Rating . | . . . Parts Repaired . | . . . Time . | . . . Parts Recycled . | . . . Recycled Matter . | . . . Retrieved Matter . | . . . Retrieved Components . | . . . Parts Scanalyzed . | . . . Part Schematics Acquired . | . . . Parts Damaged . | . . . Bothacking | -11 -10 -9 ------------ Run | Yrd Mat Mat Used RIF Installer . | . . . Robots Hacked . | . . . Non-combat . | . . . Combat . | . . . Robot Hacks Applied . | . . . Relay Couplers Released . | . . . Fabnet Peak Effective % . | . . . Robots Rewired . | . . . Allies Hacked . | . . . Hacks Repelled . | . . . Allies | -11 -10 -9 -------- Run | Yrd Mat Mat Total Allies . | . . . Largest Group . | . . . Highest-Rated Group . | . . . Highest-Rated Ally . | . . . Total Orders . | . . . Ally Attacks . | . . . Total Damage . | . . . Kills . | . . . Allies Corrupted . | . . . Allies Melted . | . . . Intel | -11 -10 -9 ------- Run | Yrd Mat Mat Robot Analysis Total . | . . . Derelict Logs Recovered . | . . . Drone Launches . | . . . Drone Recoveries . | . . . Exploration | -11 -10 -9 ------------- Run | Yrd Mat Mat Turns Passed 864 | 261 440 163 Spaces Moved 412 | 124 244 44 Core 31 | 27 . 4 Treads 381 | 97 244 40 Legs . | . . . Wheels . | . . . Hover . | . . . Flight . | . . . Fastest Speed 50 | 50 160 160 Average Speed 155 | 136 160 186 Slowest Speed 500 | 160 160 500 Overloaded Moves . | . . . Propulsion Burnouts . | . . . Robots Hopped . | . . . Cave-ins Triggered . | . . . Exploration Rate (%) 20 | 6 46 8 Regions Visited 2 Branch Regions . Pre-discovered Areas . | . . . Known Exits Taken . | . . . Unknown Exits Taken 2 | 1 1 . Scrap Searched . | . . . Spaces Dug . | . . . Terrain Destroyed 12 | . . 12 Melee . | . . . Projectile . | . . . AOE 12 | . . 12 Terrain Rammed . | . . . Walls Destroyed . | . . . Machines Disabled . | . . . Actions | -11 -10 -9 --------- Run | Yrd Mat Mat Total 521 | 168 270 83 Wait . | . . . Move 410 | 123 243 44 Hop . | . . . Pick Up 20 | 8 8 4 Fast Attach 1 | 1 . . Attach 16 | 6 . 10 Detach . | . . . Swap 3 | . 2 1 Drop 2 | . 2 . Fire 69 | 30 15 24 Melee . | . . . Ram . | . . . Kick . | . . . Crush . | . . . Escape Stasis . | . . . Rewire . | . . . Trap . | . . . Miscellaneous . | . . . Route ------- -11/Scrapyard -10/Materials (discovered 2 exits: [*Mat] / [*Min]) -9/Materials History --------- Turn | Location | Event 7 | -11/Scrapyard | Discovered new exit (range 14) 262 | -11/Scrapyard | Entered Materials 301 | -10/Materials | Build established: Mutant 516 | -10/Materials | Discovered new exit (range 6) 678 | -10/Materials | Discovered new exit (range 16) 702 | -10/Materials | Entered another Materials area 702 | -9/Materials | Evolved 2 slots: Utility x1, Weapon x1 840 | -9/Materials | Core integrity fell below 50% 855 | -9/Materials | Core integrity fell below 20% 865 | -9/Materials | Destroyed by G-34 Mercenary with Small Laser Last Messages --------------- 00852_ Heat Sink destroyed. 00852_ U-05 Engineer lays Concrete. 00853_ Ion Engine destroyed. 00853_ R-06 Scavenger collects Com. Wheel. 00854_ U-05 Engineer lays Concrete. 00857_ Acquired Grenade Launcher. 00857_ U-05 Engineer lays Concrete. 00858_ M-13 Machinist repairs R-06 Scavenger. 00859_ U-05 Engineer lays Concrete. 00859_ R-06 Scavenger collects Lgt. Ion Engine. 00861_ U-05 Engineer lays Concrete. 00863_ Acquired Huge Storage Unit. 00863_ R-06 Scavenger collects Med. Matter Pod. 00864_ U-05 Engineer lays Concrete. 00864_ G-34 Mercenary destroyed. 00864_ M-13 Machinist destroyed. 00864_ Grenade Launcher destroyed. 00864_ Destroyed Grenade Launcher. 00865_ U-05 Engineer lays Concrete. 00865_ U-05 Engineer builds a Wall. Map ----- +----------------------------------------------------+ | ?????????????????????????????????????????????????? | | ?????????????????????????????????????????????????? | | ?????????????????????????????????????????????????? | | ?????????????????????????????????????????????????? | | ?????????????????????????????????????????????????? | | ?????????????????????????????????????????????????? | | ?????????????????????????????????????????????????? | | ?????????????????????????????????????????????????? | | ?????????????????????????????????????????????????? | | ?????????????????????????? ??????????????????????? | | ?????????????????????????????????????????????????? | | ?????????????????????????????????????????????????? | | ?????????????????????????????????????????????????? | | ?????????????????????????????????????????????????? | | ??????????#??????????? ????????? ???????????????? | | ???????????#???#???????"????????? ???????????????? | | ???????????# ???#??????"??? ?????????????????????? | | ???????????# ?????????? ????????????????????????? | | ???????????# ?????????? ????#???????????????????? | | ??????????## ???#???????[?????? ?????????????????? | | ???????##??# ???# ??????[????????????????????????? | | ???????????# ???? ""???? ??####?? #??????????????? | | ????#??????# ?????? ??? ## # #??????????????? | | ???????????# ########+### #??????????????? | | ???????????# % !Y %= u #?#????????????? | | ???????????# ^ @!g %! o ????????? | | ???????????+ ]!*% #####??????????? | | ?????????"?# ^% "" #??????????????? | | ???????????## r"" + ?????????????? | | ????????????# ###### ??????????????? | | ??????? ????# #????# ^ ??????????????? | | ????????????#+###### "" r ##?????????????? | | ??????????#?# # " % u #?????????????? | | ?#??????????# # " | #?????????????? | | ????????????# # a " ????????????? | | ??????????#?# # # ????????????? | | ????#???????# + a #?????????????? | | ????????????# #a ######## #??????????????? | | ????????????######## #??????? ????????????????? | | ???????############# #??????#??????????????????? | | ????? #?????????????????????????? | | ????? ####??????????????????????? | | ????? !##?????????????????????? | | ??????############## !#???? ????????????????? | | ???????????????????# !#?????????????????????? | | ???????????????????# !#???#?????????????????? | | ???????????????????# !#?????????????????????? | | ???????????????????##### !##?????????????????????? | | ???????????????????????####??????????????????????? | | ?????????????????????????????????????????????????? | +----------------------------------------------------+ Best States ------------- Heat Dissipation 38 Energy Generation 10 Energy Capacity 250 Matter Stores 300 Matter Capacity 300 Sight Range 16 Terrain Scan Range 16 Terrain Scan Density 10 Evasion (%) 50 Recoil Reduction 2 Item Schematics ----------------- None Robot Schematics ------------------ None Fabricated ------------ Nothing Alien Tech Used ----------------- None Achievements -------------- None Challenges ------------ None Game ------ Seed VortexAlphaDriver Manual? 0 Play Time 00:10:47 Cumulative 14.0 hours Start 2024.03.12 @ 07:23:46 End 2024.03.12 @ 07:34:39 Sessions 1 Manual Loads 0 Difficulty Rogue Special Mode None Game No. 33 Rogue 16 Adventurer 17 Explorer 0 Win Type - Total 0 Types 0/0/0/0/0/0/0/0/0 Lore% 14 Gallery% 19 Achievement% 14 Wizard Run 0 Options --------- Layout 1 ASCII 0 Keyboard 0 Movement Mouse Keybinds 0 Fullscreen 1 Font 24/Smallcaps Map View 50x35 Zoom Use 0% Tactical HUD 1 Map Filters NONE Filters NONE Steam 1 RUN: e21898e2-cfc9-410f-9557-00c0268e3592